[Event "Titled Tuesday Blitz April 12 Early 2022"]
[White "Sychev, Klementy"]
[Black "Dubov, Daniil"]
[WhiteFideId "4114060"]
[BlackFideId "24126055"]
[WhiteElo "2564"]
[BlackElo "2791"]
[Result "1-0"]
[Round "06"]
[TimeControl "180+1"]
[Date "2022.04.12"]
[WhiteClock "0:00:02"]
[BlackClock "0:00:04"]

1. d4 {[%clk 0:02:47]}  d5 {[%clk 0:02:59]} 2. c4 {[%clk 0:02:44]}  c6 {[%clk 0:02:59]} 3. Nf3 {[%clk 0:02:40]}  Nf6 {[%clk 0:02:58]} 4. Qc2 {[%clk 0:02:38]}  g6 {[%clk 0:02:57]} 5. cxd5 {[%clk 0:02:37]}  cxd5 {[%clk 0:02:55]} 6. Bf4 {[%clk 0:02:38]}  Nc6 {[%clk 0:02:53]} 7. e3 {[%clk 0:02:37]}  Bg7 {[%clk 0:02:52]} 8. Nc3 {[%clk 0:02:37]}  O-O {[%clk 0:02:50]} 9. Be2 {[%clk 0:02:36]}  Nh5 {[%clk 0:02:48]} 10. Bg5 {[%clk 0:02:33]}  h6 {[%clk 0:02:48]} 11. Bh4 {[%clk 0:02:33]}  Bf5 {[%clk 0:02:45]} 12. Qb3 {[%clk 0:02:31]}  g5 {[%clk 0:02:44]} 13. Bg3 {[%clk 0:02:24]}  Nxg3 {[%clk 0:02:41]} 14. hxg3 {[%clk 0:02:24]}  e6 {[%clk 0:02:39]} 15. Qxb7 {[%clk 0:02:15]}  Na5 {[%clk 0:02:29]} 16. Qa6 {[%clk 0:02:14]}  Rb8 {[%clk 0:02:29]} 17. Qxa7 {[%clk 0:01:59]}  Rxb2 {[%clk 0:02:20]} 18. O-O {[%clk 0:01:55]}  Nc6 {[%clk 0:01:54]} 19. Qa3 {[%clk 0:01:52]}  Qb8 {[%clk 0:01:53]} 20. Rfe1 {[%clk 0:01:27]}  Rc8 {[%clk 0:01:38]} 21. Na4 {[%clk 0:01:13]}  Rb4 {[%clk 0:01:11]} 22. Nc5 {[%clk 0:01:10]}  Qb6 {[%clk 0:01:10]} 23. Bd3 {[%clk 0:00:56]}  Bg4 {[%clk 0:01:03]} 24. Nh2 {[%clk 0:00:36]}  h5 {[%clk 0:00:49]} 25. Rab1 {[%clk 0:00:29]}  Bf8 {[%clk 0:00:38]} 26. Nxg4 {[%clk 0:00:17]}  hxg4 {[%clk 0:00:37]} 27. Qc3 {[%clk 0:00:16]}  Qa5 {[%clk 0:00:26]} 28. Nd7 {[%clk 0:00:09]}  Be7 {[%clk 0:00:18]} 29. a3 {[%clk 0:00:05]}  Rxb1 {[%clk 0:00:06]} 30. Qxa5 {[%clk 0:00:06]}  Nxa5 {[%clk 0:00:07]} 31. Rxb1 {[%clk 0:00:06]}  Rc3 {[%clk 0:00:08]} 32. Be2 {[%clk 0:00:04]}  Rxa3 {[%clk 0:00:08]} 33. Ne5 {[%clk 0:00:03]}  f5 {[%clk 0:00:06]} 34. Rb6 {[%clk 0:00:02]}  Ra1+ {[%clk 0:00:04]} 35. Kh2 {[%clk 0:00:02]}  Ra2 {[%clk 0:00:05]} 36. Bb5 {[%clk 0:00:02]}  Rxf2 {[%clk 0:00:05]} 37. Rxe6 {[%clk 0:00:02]}  Bb4 {[%clk 0:00:05]} 38. Bd7 {[%clk 0:00:02]}  Bd2 {[%clk 0:00:04]} 39. Re7 {[%clk 0:00:02]} 1-0


[Site "https://www.chess.com"]

[Event "Titled Tuesday Blitz April 12 Early 2022"]
[White "Taspinar, Yanki"]
[Black "Lashkin, Jegor"]
[WhiteFideId "34561188"]
[BlackFideId "13907808"]
[WhiteElo "1518"]
[BlackElo "2368"]
[Result "1-0"]
[Round "06"]
[TimeControl "180+1"]
[Date "2022.04.12"]
[WhiteClock "0:00:20"]
[BlackClock "0:00:02"]

1. d4 {[%clk 0:03:00]}  Nf6 {[%clk 0:03:00]} 2. c4 {[%clk 0:03:00]}  e6 {[%clk 0:03:01]} 3. Nf3 {[%clk 0:02:59]}  d5 {[%clk 0:03:01]} 4. cxd5 {[%clk 0:02:59]}  exd5 {[%clk 0:03:01]} 5. Nc3 {[%clk 0:02:59]}  c6 {[%clk 0:03:01]} 6. Bg5 {[%clk 0:03:00]}  Be7 {[%clk 0:02:57]} 7. Qc2 {[%clk 0:02:56]}  g6 {[%clk 0:02:57]} 8. e3 {[%clk 0:02:56]}  Bf5 {[%clk 0:02:57]} 9. Bd3 {[%clk 0:02:57]}  Bxd3 {[%clk 0:02:57]} 10. Qxd3 {[%clk 0:02:58]}  O-O {[%clk 0:02:57]} 11. O-O {[%clk 0:02:57]}  Nbd7 {[%clk 0:02:56]} 12. Rab1 {[%clk 0:02:57]}  a5 {[%clk 0:02:54]} 13. h3 {[%clk 0:02:55]}  Re8 {[%clk 0:02:53]} 14. Bf4 {[%clk 0:02:49]}  Nb6 {[%clk 0:02:50]} 15. Ne5 {[%clk 0:02:46]}  Bd6 {[%clk 0:02:39]} 16. Bh2 {[%clk 0:02:41]}  Qe7 {[%clk 0:02:36]} 17. f4 {[%clk 0:02:38]}  Nfd7 {[%clk 0:02:13]} 18. Rbe1 {[%clk 0:02:36]}  f6 {[%clk 0:02:07]} 19. Ng4 {[%clk 0:02:31]}  f5 {[%clk 0:01:55]} 20. Ne5 {[%clk 0:02:29]}  Bxe5 {[%clk 0:01:45]} 21. fxe5 {[%clk 0:02:30]}  Rf8 {[%clk 0:01:35]} 22. Rf2 {[%clk 0:02:27]}  a4 {[%clk 0:01:33]} 23. Ref1 {[%clk 0:02:25]}  Nc4 {[%clk 0:01:29]} 24. Bf4 {[%clk 0:02:21]}  Rf7 {[%clk 0:01:13]} 25. Bh2 {[%clk 0:02:07]}  Qg5 {[%clk 0:01:04]} 26. e6 {[%clk 0:02:05]}  Re7 {[%clk 0:01:02]} 27. exd7 {[%clk 0:02:05]}  Rxd7 {[%clk 0:01:02]} 28. Bf4 {[%clk 0:02:03]}  Qe7 {[%clk 0:01:02]} 29. b3 {[%clk 0:02:03]}  axb3 {[%clk 0:00:59]} 30. axb3 {[%clk 0:02:04]}  Nb6 {[%clk 0:00:58]} 31. g4 {[%clk 0:01:52]}  fxg4 {[%clk 0:00:52]} 32. hxg4 {[%clk 0:01:53]}  Rdd8 {[%clk 0:00:49]} 33. Bh6 {[%clk 0:01:39]}  Qe6 {[%clk 0:00:46]} 34. Qe2 {[%clk 0:01:35]}  Nd7 {[%clk 0:00:43]} 35. g5 {[%clk 0:01:22]}  Re8 {[%clk 0:00:39]} 36. Nd1 {[%clk 0:01:20]}  c5 {[%clk 0:00:29]} 37. Qf3 {[%clk 0:00:48]}  c4 {[%clk 0:00:15]} 38. bxc4 {[%clk 0:00:46]}  dxc4 {[%clk 0:00:15]} 39. d5 {[%clk 0:00:45]}  Qe7 {[%clk 0:00:15]} 40. e4 {[%clk 0:00:37]}  Ne5 {[%clk 0:00:14]} 41. Qf6 {[%clk 0:00:34]}  Qxf6 {[%clk 0:00:10]} 42. Rxf6 {[%clk 0:00:33]}  Ng4 {[%clk 0:00:06]} 43. R6f4 {[%clk 0:00:28]}  Ne5 {[%clk 0:00:06]} 44. d6 {[%clk 0:00:27]}  Rad8 {[%clk 0:00:05]} 45. Nc3 {[%clk 0:00:27]}  Nd3 {[%clk 0:00:05]} 46. Rf7 {[%clk 0:00:26]}  Ne5 {[%clk 0:00:02]} 47. Rg7+ {[%clk 0:00:26]}  Kh8 {[%clk 0:00:03]} 48. Re7 {[%clk 0:00:22]}  Rg8 {[%clk 0:00:02]} 49. Nd5 {[%clk 0:00:21]}  Ng4 {[%clk 0:00:02]} 50. Nf6 {[%clk 0:00:20]}  Nxf6 {[%clk 0:00:02]} 51. gxf6 {[%clk 0:00:20]} 1-0


[Site "https://www.chess.com"]

[Event "Titled Tuesday Blitz April 12 Early 2022"]
[White "Timofeev, Artyom"]
[Black "Seo, Jung Min"]
[WhiteFideId "4140419"]
[BlackFideId "1734687"]
[WhiteElo "2594"]
[BlackElo "2401"]
[Result "1-0"]
[Round "06"]
[TimeControl "180+1"]
[Date "2022.04.12"]
[WhiteClock "0:01:08"]
[BlackClock "0:01:02"]

1. e4 {[%clk 0:03:00]}  e5 {[%clk 0:03:00]} 2. Nf3 {[%clk 0:03:00]}  Nc6 {[%clk 0:03:00]} 3. Nc3 {[%clk 0:02:58]}  Nf6 {[%clk 0:03:00]} 4. Be2 {[%clk 0:02:58]}  Bb4 {[%clk 0:02:55]} 5. O-O {[%clk 0:02:57]}  Bxc3 {[%clk 0:02:53]} 6. dxc3 {[%clk 0:02:55]}  O-O {[%clk 0:02:53]} 7. Nd2 {[%clk 0:02:51]}  d6 {[%clk 0:02:53]} 8. Re1 {[%clk 0:02:44]}  Be6 {[%clk 0:02:52]} 9. Bf1 {[%clk 0:02:44]}  Nd7 {[%clk 0:02:50]} 10. Nc4 {[%clk 0:02:42]}  Nb6 {[%clk 0:02:49]} 11. Ne3 {[%clk 0:02:41]}  d5 {[%clk 0:02:38]} 12. exd5 {[%clk 0:02:39]}  Nxd5 {[%clk 0:02:38]} 13. Nc4 {[%clk 0:02:35]}  f6 {[%clk 0:02:35]} 14. Qf3 {[%clk 0:02:34]}  Qe7 {[%clk 0:02:30]} 15. a4 {[%clk 0:02:30]}  Qf7 {[%clk 0:02:28]} 16. b3 {[%clk 0:02:19]}  Rad8 {[%clk 0:02:26]} 17. Ba3 {[%clk 0:02:18]}  Rfe8 {[%clk 0:02:26]} 18. Rad1 {[%clk 0:02:16]}  Nb6 {[%clk 0:02:20]} 19. Ne3 {[%clk 0:02:09]}  Kh8 {[%clk 0:02:15]} 20. Bb5 {[%clk 0:02:06]}  Bd7 {[%clk 0:02:12]} 21. h3 {[%clk 0:01:53]}  a6 {[%clk 0:02:11]} 22. Bd3 {[%clk 0:01:51]}  Be6 {[%clk 0:02:09]} 23. Be4 {[%clk 0:01:51]}  Bd7 {[%clk 0:01:41]} 24. Rd3 {[%clk 0:01:50]}  Nc8 {[%clk 0:01:34]} 25. Red1 {[%clk 0:01:45]}  N8a7 {[%clk 0:01:34]} 26. Bc5 {[%clk 0:01:41]}  b6 {[%clk 0:01:29]} 27. Ba3 {[%clk 0:01:41]}  Nb8 {[%clk 0:01:18]} 28. h4 {[%clk 0:01:25]}  Qg8 {[%clk 0:01:15]} 29. Qh5 {[%clk 0:01:18]}  Nc8 {[%clk 0:01:02]} 30. Bd5 {[%clk 0:01:08]} 1-0


[Site "https://www.chess.com"]

[Event "Titled Tuesday Blitz April 12 Early 2022"]
[White "Uzuner, Tufan Can"]
[Black "Seul, Georg"]
[WhiteFideId "6300499"]
[BlackFideId "4601653"]
[WhiteElo "2138"]
[BlackElo "2271"]
[Result "0-1"]
[Round "06"]
[TimeControl "180+1"]
[Date "2022.04.13"]
[WhiteClock "0:00:18"]
[BlackClock "0:00:18"]

1. d4 {[%clk 0:03:00]}  f5 {[%clk 0:02:57]} 2. Bg5 {[%clk 0:02:59]}  g6 {[%clk 0:02:56]} 3. Bh4 {[%clk 0:03:00]}  Bg7 {[%clk 0:02:54]} 4. c3 {[%clk 0:02:58]}  d6 {[%clk 0:02:52]} 5. f3 {[%clk 0:02:57]}  Nf6 {[%clk 0:02:48]} 6. Nd2 {[%clk 0:02:56]}  Nc6 {[%clk 0:02:41]} 7. e4 {[%clk 0:02:56]}  e5 {[%clk 0:02:41]} 8. Bb5 {[%clk 0:02:52]}  O-O {[%clk 0:02:40]} 9. Ne2 {[%clk 0:02:51]}  h6 {[%clk 0:02:24]} 10. Bxc6 {[%clk 0:02:31]}  bxc6 {[%clk 0:02:24]} 11. dxe5 {[%clk 0:02:31]}  dxe5 {[%clk 0:02:23]} 12. Bf2 {[%clk 0:02:29]}  fxe4 {[%clk 0:02:12]} 13. Nxe4 {[%clk 0:02:26]}  Nxe4 {[%clk 0:02:10]} 14. Qxd8 {[%clk 0:02:20]}  Rxd8 {[%clk 0:02:09]} 15. fxe4 {[%clk 0:02:21]}  Ba6 {[%clk 0:02:09]} 16. Rd1 {[%clk 0:02:14]}  Rxd1+ {[%clk 0:02:07]} 17. Kxd1 {[%clk 0:02:14]}  Rd8+ {[%clk 0:02:08]} 18. Ke1 {[%clk 0:02:10]}  Bd3 {[%clk 0:02:00]} 19. Ng3 {[%clk 0:02:10]}  h5 {[%clk 0:01:57]} 20. h4 {[%clk 0:02:09]}  Bh6 {[%clk 0:01:55]} 21. Rh3 {[%clk 0:02:01]}  a6 {[%clk 0:01:53]} 22. b3 {[%clk 0:01:55]}  Kf7 {[%clk 0:01:49]} 23. c4 {[%clk 0:01:54]}  Bb1 {[%clk 0:01:41]} 24. a4 {[%clk 0:01:45]}  Bc2 {[%clk 0:01:38]} 25. Ne2 {[%clk 0:01:44]}  Bxe4 {[%clk 0:01:37]} 26. Be3 {[%clk 0:01:42]}  Bxg2 {[%clk 0:01:30]} 27. Rg3 {[%clk 0:01:33]}  Bxe3 {[%clk 0:01:28]} 28. Rxe3 {[%clk 0:01:31]}  e4 {[%clk 0:01:16]} 29. Nc3 {[%clk 0:01:22]}  Rd3 {[%clk 0:01:05]} 30. Rxd3 {[%clk 0:01:11]}  exd3 {[%clk 0:01:05]} 31. Kd2 {[%clk 0:01:09]}  Bf1 {[%clk 0:00:54]} 32. Ne4 {[%clk 0:01:07]}  Ke7 {[%clk 0:00:34]} 33. a5 {[%clk 0:01:07]}  Bg2 {[%clk 0:00:19]} 34. Nc5 {[%clk 0:00:50]}  g5 {[%clk 0:00:19]} 35. hxg5 {[%clk 0:00:50]}  h4 {[%clk 0:00:19]} 36. Nxd3 {[%clk 0:00:51]}  h3 {[%clk 0:00:18]} 37. Nf2 {[%clk 0:00:48]}  h2 {[%clk 0:00:19]} 38. b4 {[%clk 0:00:49]}  h1=Q {[%clk 0:00:19]} 39. Nxh1 {[%clk 0:00:48]}  Bxh1 {[%clk 0:00:20]} 40. Ke3 {[%clk 0:00:48]}  Ke6 {[%clk 0:00:19]} 41. Kd4 {[%clk 0:00:46]}  Kf5 {[%clk 0:00:18]} 42. Kc5 {[%clk 0:00:46]}  Kxg5 {[%clk 0:00:16]} 43. Kd4 {[%clk 0:00:22]}  Kf6 {[%clk 0:00:16]} 44. Kc5 {[%clk 0:00:19]}  Ke6 {[%clk 0:00:16]} 45. Kd4 {[%clk 0:00:19]}  Kd6 {[%clk 0:00:16]} 46. c5+ {[%clk 0:00:17]}  Ke6 {[%clk 0:00:15]} 47. Kc4 {[%clk 0:00:17]}  Ke5 {[%clk 0:00:15]} 48. Kc3 {[%clk 0:00:18]}  Kd5 {[%clk 0:00:15]} 49. Kd3 {[%clk 0:00:18]}  Be4+ {[%clk 0:00:15]} 50. Kc3 {[%clk 0:00:18]}  Bg6 {[%clk 0:00:16]} 51. Kb3 {[%clk 0:00:17]}  Kd4 {[%clk 0:00:17]} 52. Ka4 {[%clk 0:00:18]}  Kc4 {[%clk 0:00:17]} 53. Ka3 {[%clk 0:00:18]}  Kb5 {[%clk 0:00:16]} 54. Kb3 {[%clk 0:00:18]}  Bf7+ {[%clk 0:00:17]} 55. Ka3 {[%clk 0:00:18]}  Be6 {[%clk 0:00:18]} 0-1


[Site "https://www.chess.com"]

[Event "Titled Tuesday Blitz April 12 Early 2022"]
[White "Vinod, Kumar Sharma"]
[Black "Pinheiro, Iung Alicio de O."]
[WhiteFideId "5013518"]
[BlackFideId "2104350"]
[WhiteElo "2154"]
[BlackElo "2584"]
[Result "0-1"]
[Round "06"]
[TimeControl "180+1"]
[Date "2022.04.13"]
[WhiteClock "0:00:02"]
[BlackClock "0:00:12"]

1. e4 {[%clk 0:03:00]}  c5 {[%clk 0:02:57]} 2. Nf3 {[%clk 0:02:59]}  Nc6 {[%clk 0:02:58]} 3. d4 {[%clk 0:03:00]}  cxd4 {[%clk 0:02:57]} 4. Nxd4 {[%clk 0:03:01]}  Nf6 {[%clk 0:02:58]} 5. Nc3 {[%clk 0:03:01]}  e5 {[%clk 0:02:58]} 6. Nf3 {[%clk 0:03:01]}  Bb4 {[%clk 0:02:57]} 7. Bc4 {[%clk 0:03:00]}  O-O {[%clk 0:02:54]} 8. O-O {[%clk 0:03:00]}  Bxc3 {[%clk 0:02:46]} 9. bxc3 {[%clk 0:03:01]}  Nxe4 {[%clk 0:02:42]} 10. Re1 {[%clk 0:03:00]}  Nxc3 {[%clk 0:02:17]} 11. Qd6 {[%clk 0:02:56]}  Qf6 {[%clk 0:02:00]} 12. Ba3 {[%clk 0:02:53]}  Re8 {[%clk 0:01:48]} 13. Re3 {[%clk 0:01:33]}  b5 {[%clk 0:01:30]} 14. Bb3 {[%clk 0:01:26]}  e4 {[%clk 0:01:21]} 15. Rae1 {[%clk 0:01:06]}  b4 {[%clk 0:00:54]} 16. Bxb4 {[%clk 0:00:48]}  Nb5 {[%clk 0:00:31]} 17. Qxf6 {[%clk 0:00:44]}  gxf6 {[%clk 0:00:31]} 18. Rxe4 {[%clk 0:00:43]}  Rxe4 {[%clk 0:00:31]} 19. Rxe4 {[%clk 0:00:43]}  Nxb4 {[%clk 0:00:30]} 20. Rxb4 {[%clk 0:00:37]}  a6 {[%clk 0:00:30]} 21. a4 {[%clk 0:00:18]}  Nc7 {[%clk 0:00:26]} 22. Rf4 {[%clk 0:00:15]}  Kg7 {[%clk 0:00:25]} 23. Rg4+ {[%clk 0:00:14]}  Kf8 {[%clk 0:00:25]} 24. Rf4 {[%clk 0:00:14]}  Ke7 {[%clk 0:00:25]} 25. Nd4 {[%clk 0:00:14]}  d5 {[%clk 0:00:24]} 26. Rh4 {[%clk 0:00:14]}  Rb8 {[%clk 0:00:16]} 27. Nc6+ {[%clk 0:00:11]}  Kd6 {[%clk 0:00:16]} 28. Nxb8 {[%clk 0:00:12]}  Be6 {[%clk 0:00:17]} 29. Rxh7 {[%clk 0:00:12]}  Kc5 {[%clk 0:00:14]} 30. Rh8 {[%clk 0:00:12]}  Kb6 {[%clk 0:00:14]} 31. h4 {[%clk 0:00:10]}  Kb7 {[%clk 0:00:14]} 32. h5 {[%clk 0:00:07]}  Bc8 {[%clk 0:00:13]} 33. h6 {[%clk 0:00:06]}  Bf5 {[%clk 0:00:12]} 34. h7 {[%clk 0:00:06]}  d4 {[%clk 0:00:12]} 35. Nd7 {[%clk 0:00:04]}  Kc6 {[%clk 0:00:08]} 36. Nxf6 {[%clk 0:00:02]}  Bxh7 {[%clk 0:00:09]} 37. Rxh7 {[%clk 0:00:02]}  Kd6 {[%clk 0:00:10]} 38. Rxf7 {[%clk 0:00:02]}  Ne6 {[%clk 0:00:11]} 39. Rh7 {[%clk 0:00:02]}  Nc5 {[%clk 0:00:12]} 40. Ng4 {[%clk 0:00:02]}  Ne4 {[%clk 0:00:12]} 0-1


[Site "https://www.chess.com"]

[Event "Titled Tuesday Blitz April 12 Early 2022"]
[White "Weetik, Vjacheslav"]
[Black "Pesotskiy, Mikhail"]
[WhiteFideId "4153472"]
[BlackFideId "34164453"]
[WhiteElo "2469"]
[BlackElo "2010"]
[Result "1/2-1/2"]
[Round "06"]
[TimeControl "180+1"]
[Date "2022.04.13"]
[WhiteClock "0:00:09"]
[BlackClock "0:00:18"]

1. d4 {[%clk 0:02:57]}  Nf6 {[%clk 0:02:59]} 2. Nf3 {[%clk 0:02:56]}  c5 {[%clk 0:02:57]} 3. d5 {[%clk 0:02:55]}  b5 {[%clk 0:02:57]} 4. Bg5 {[%clk 0:02:49]}  Qb6 {[%clk 0:02:57]} 5. c4 {[%clk 0:02:17]}  Ne4 {[%clk 0:02:12]} 6. Nbd2 {[%clk 0:02:03]}  Nxg5 {[%clk 0:02:10]} 7. Nxg5 {[%clk 0:02:03]}  g6 {[%clk 0:02:08]} 8. cxb5 {[%clk 0:01:51]}  Qxb5 {[%clk 0:02:06]} 9. e4 {[%clk 0:01:37]}  Qxb2 {[%clk 0:02:05]} 10. Rb1 {[%clk 0:01:36]}  Qc3 {[%clk 0:01:49]} 11. Rb3 {[%clk 0:01:16]}  Qa5 {[%clk 0:01:46]} 12. e5 {[%clk 0:01:03]}  Bg7 {[%clk 0:01:41]} 13. e6 {[%clk 0:01:02]}  dxe6 {[%clk 0:01:38]} 14. dxe6 {[%clk 0:01:01]}  f6 {[%clk 0:01:31]} 15. Qf3 {[%clk 0:00:44]}  O-O {[%clk 0:01:27]} 16. Qxa8 {[%clk 0:00:42]}  Na6 {[%clk 0:01:16]} 17. Nf3 {[%clk 0:00:27]}  Bxe6 {[%clk 0:01:04]} 18. Qxa7 {[%clk 0:00:27]}  Bxb3 {[%clk 0:00:57]} 19. Qxa6 {[%clk 0:00:10]}  Qxa6 {[%clk 0:00:27]} 20. Bxa6 {[%clk 0:00:10]}  Bxa2 {[%clk 0:00:28]} 21. Bc4+ {[%clk 0:00:09]}  Bxc4 {[%clk 0:00:28]} 22. Nxc4 {[%clk 0:00:10]}  e5 {[%clk 0:00:17]} 23. O-O {[%clk 0:00:11]}  e4 {[%clk 0:00:18]} 24. Nfd2 {[%clk 0:00:11]}  f5 {[%clk 0:00:19]} 25. Rc1 {[%clk 0:00:11]}  Bd4 {[%clk 0:00:18]} 26. Kf1 {[%clk 0:00:12]}  Rb8 {[%clk 0:00:18]} 27. Rc2 {[%clk 0:00:12]}  Ra8 {[%clk 0:00:18]} 28. Ke2 {[%clk 0:00:12]}  Ra1 {[%clk 0:00:18]} 29. f3 {[%clk 0:00:13]}  Rg1 {[%clk 0:00:16]} 30. fxe4 {[%clk 0:00:12]}  fxe4 {[%clk 0:00:17]} 31. Nxe4 {[%clk 0:00:12]}  Rxg2+ {[%clk 0:00:16]} 32. Kd3 {[%clk 0:00:12]}  Rxc2 {[%clk 0:00:16]} 33. Kxc2 {[%clk 0:00:12]}  Kg7 {[%clk 0:00:16]} 34. Kd3 {[%clk 0:00:12]}  Kh6 {[%clk 0:00:16]} 35. Ke2 {[%clk 0:00:13]}  Kh5 {[%clk 0:00:17]} 36. Kf3 {[%clk 0:00:13]}  Kh6 {[%clk 0:00:15]} 37. Kg4 {[%clk 0:00:12]}  Kg7 {[%clk 0:00:15]} 38. h3 {[%clk 0:00:12]}  h5+ {[%clk 0:00:13]} 39. Kg5 {[%clk 0:00:12]}  Kh7 {[%clk 0:00:10]} 40. Ncd6 {[%clk 0:00:09]}  Kg7 {[%clk 0:00:11]} 41. Nc4 {[%clk 0:00:08]}  Kh7 {[%clk 0:00:11]} 42. h4 {[%clk 0:00:08]}  Kg7 {[%clk 0:00:11]} 43. Kf4 {[%clk 0:00:08]}  Kh6 {[%clk 0:00:09]} 44. Ncd2 {[%clk 0:00:08]}  Kg7 {[%clk 0:00:08]} 45. Nf3 {[%clk 0:00:09]}  Kf7 {[%clk 0:00:05]} 46. Nxd4 {[%clk 0:00:07]}  cxd4 {[%clk 0:00:06]} 47. Ng5+ {[%clk 0:00:08]}  Kf6 {[%clk 0:00:06]} 48. Ke4 {[%clk 0:00:04]}  d3 {[%clk 0:00:06]} 49. Kxd3 {[%clk 0:00:05]}  Kf5 {[%clk 0:00:07]} 50. Ke3 {[%clk 0:00:05]}  Kg4 {[%clk 0:00:07]} 51. Nf3 {[%clk 0:00:06]}  Kg3 {[%clk 0:00:07]} 52. Ke4 {[%clk 0:00:05]}  Kg4 {[%clk 0:00:07]} 53. Ke3 {[%clk 0:00:05]}  Kg3 {[%clk 0:00:07]} 54. Ke2 {[%clk 0:00:05]}  Kg2 {[%clk 0:00:07]} 55. Ne5 {[%clk 0:00:05]}  Kg3 {[%clk 0:00:08]} 56. Nxg6 {[%clk 0:00:05]}  Kg4 {[%clk 0:00:07]} 57. Ke3 {[%clk 0:00:04]}  Kf5 {[%clk 0:00:08]} 58. Nf4 {[%clk 0:00:02]}  Kg4 {[%clk 0:00:09]} 59. Ng2 {[%clk 0:00:03]}  Kg3 {[%clk 0:00:09]} 60. Ke4 {[%clk 0:00:02]}  Kxg2 {[%clk 0:00:09]} 61. Kf5 {[%clk 0:00:03]}  Kf3 {[%clk 0:00:09]} 62. Kg5 {[%clk 0:00:04]}  Ke4 {[%clk 0:00:10]} 63. Kxh5 {[%clk 0:00:05]}  Kf5 {[%clk 0:00:11]} 64. Kh6 {[%clk 0:00:04]}  Kf6 {[%clk 0:00:11]} 65. Kh5 {[%clk 0:00:05]}  Kf7 {[%clk 0:00:12]} 66. Kh6 {[%clk 0:00:05]}  Kg8 {[%clk 0:00:13]} 67. Kg6 {[%clk 0:00:05]}  Kh8 {[%clk 0:00:14]} 68. h5 {[%clk 0:00:06]}  Kg8 {[%clk 0:00:15]} 69. h6 {[%clk 0:00:06]}  Kh8 {[%clk 0:00:16]} 70. Kg5 {[%clk 0:00:07]}  Kh7 {[%clk 0:00:16]} 71. Kh5 {[%clk 0:00:07]}  Kh8 {[%clk 0:00:17]} 72. Kg6 {[%clk 0:00:08]}  Kg8 {[%clk 0:00:18]} 73. h7+ {[%clk 0:00:09]}  Kh8 {[%clk 0:00:18]} 74. Kh6 {[%clk 0:00:09]} 1/2-1/2


[Site "https://www.chess.com"]

[Event "Titled Tuesday Blitz April 12 Early 2022"]
[White "parintele_chess"]
[Black "De Souza, Cristiano Gomes"]
[BlackFideId "2151758"]
[WhiteElo "2251"]
[BlackElo "2068"]
[Result "1/2-1/2"]
[Round "06"]
[TimeControl "180+1"]
[Date "2022.04.13"]
[WhiteClock "0:00:10"]
[BlackClock "0:01:24"]

1. d4 {[%clk 0:03:00]}  Nf6 {[%clk 0:02:59]} 2. Bf4 {[%clk 0:03:00]}  d6 {[%clk 0:02:58]} 3. Nc3 {[%clk 0:03:00]}  g6 {[%clk 0:02:57]} 4. e4 {[%clk 0:03:00]}  Bg7 {[%clk 0:02:56]} 5. Bc4 {[%clk 0:03:00]}  O-O {[%clk 0:02:55]} 6. Nf3 {[%clk 0:02:47]}  c6 {[%clk 0:02:50]} 7. a4 {[%clk 0:02:46]}  Nxe4 {[%clk 0:02:43]} 8. Nxe4 {[%clk 0:02:47]}  d5 {[%clk 0:02:43]} 9. Bd3 {[%clk 0:02:47]}  dxe4 {[%clk 0:02:43]} 10. Bxe4 {[%clk 0:02:48]}  Nd7 {[%clk 0:02:44]} 11. O-O {[%clk 0:02:43]}  Nf6 {[%clk 0:02:44]} 12. Bd3 {[%clk 0:02:42]}  Bg4 {[%clk 0:02:42]} 13. c3 {[%clk 0:02:41]}  Qd5 {[%clk 0:02:39]} 14. h3 {[%clk 0:02:38]}  Bxf3 {[%clk 0:02:39]} 15. Qxf3 {[%clk 0:02:39]}  Qxf3 {[%clk 0:02:38]} 16. gxf3 {[%clk 0:02:40]}  Nd5 {[%clk 0:02:37]} 17. Bd2 {[%clk 0:02:38]}  Rfe8 {[%clk 0:02:38]} 18. c4 {[%clk 0:02:32]}  Nc7 {[%clk 0:02:36]} 19. Bc3 {[%clk 0:02:26]}  Rad8 {[%clk 0:02:30]} 20. Rfe1 {[%clk 0:02:03]}  Bxd4 {[%clk 0:02:29]} 21. Rad1 {[%clk 0:01:58]}  Bxc3 {[%clk 0:02:28]} 22. bxc3 {[%clk 0:01:59]}  Ne6 {[%clk 0:02:28]} 23. Be4 {[%clk 0:01:55]}  Rxd1 {[%clk 0:02:25]} 24. Rxd1 {[%clk 0:01:56]}  Rd8 {[%clk 0:02:25]} 25. Rb1 {[%clk 0:01:53]}  Nc5 {[%clk 0:02:22]} 26. a5 {[%clk 0:01:48]}  Rd2 {[%clk 0:02:15]} 27. a6 {[%clk 0:01:43]}  Nxa6 {[%clk 0:02:12]} 28. Rxb7 {[%clk 0:01:43]}  Nc5 {[%clk 0:02:12]} 29. Rxa7 {[%clk 0:01:37]}  Nxe4 {[%clk 0:02:10]} 30. fxe4 {[%clk 0:01:38]}  Re2 {[%clk 0:02:05]} 31. Rxe7 {[%clk 0:01:37]}  Kf8 {[%clk 0:02:05]} 32. Rc7 {[%clk 0:01:35]}  Rxe4 {[%clk 0:02:05]} 33. Rxc6 {[%clk 0:01:35]}  h5 {[%clk 0:02:05]} 34. Rc7 {[%clk 0:01:32]}  Kg7 {[%clk 0:02:04]} 35. Kf1 {[%clk 0:01:31]}  Re6 {[%clk 0:01:57]} 36. c5 {[%clk 0:01:28]}  Kf6 {[%clk 0:01:56]} 37. Rb7 {[%clk 0:01:18]}  Re5 {[%clk 0:01:51]} 38. Rb5 {[%clk 0:01:07]}  Ke6 {[%clk 0:01:48]} 39. c4 {[%clk 0:01:04]}  Re4 {[%clk 0:01:47]} 40. Rb6+ {[%clk 0:00:58]}  Ke7 {[%clk 0:01:46]} 41. Rb7+ {[%clk 0:00:51]}  Ke6 {[%clk 0:01:46]} 42. Rb6+ {[%clk 0:00:51]}  Ke7 {[%clk 0:01:42]} 43. Rb4 {[%clk 0:00:51]}  Re5 {[%clk 0:01:39]} 44. c6 {[%clk 0:00:50]}  Rc5 {[%clk 0:01:39]} 45. Rb7+ {[%clk 0:00:50]}  Ke6 {[%clk 0:01:39]} 46. Rb4 {[%clk 0:00:41]}  Rxc6 {[%clk 0:01:39]} 47. Ke2 {[%clk 0:00:42]}  Kf5 {[%clk 0:01:38]} 48. Ke3 {[%clk 0:00:38]}  Kg5 {[%clk 0:01:38]} 49. Kd4 {[%clk 0:00:24]}  Kh4 {[%clk 0:01:37]} 50. Rb3 {[%clk 0:00:24]}  Rf6 {[%clk 0:01:36]} 51. c5 {[%clk 0:00:23]}  Rxf2 {[%clk 0:01:34]} 52. c6 {[%clk 0:00:23]}  Rd2+ {[%clk 0:01:33]} 53. Rd3 {[%clk 0:00:16]}  Rc2 {[%clk 0:01:29]} 54. Rc3 {[%clk 0:00:16]}  Rd2+ {[%clk 0:01:29]} 55. Ke5 {[%clk 0:00:14]}  Rd8 {[%clk 0:01:28]} 56. c7 {[%clk 0:00:14]}  Rc8 {[%clk 0:01:28]} 57. Kf6 {[%clk 0:00:15]}  g5 {[%clk 0:01:28]} 58. Kxf7 {[%clk 0:00:15]}  g4 {[%clk 0:01:28]} 59. hxg4 {[%clk 0:00:15]}  hxg4 {[%clk 0:01:28]} 60. Ke7 {[%clk 0:00:16]}  g3 {[%clk 0:01:28]} 61. Kd7 {[%clk 0:00:16]}  Rxc7+ {[%clk 0:01:28]} 62. Kxc7 {[%clk 0:00:16]}  g2 {[%clk 0:01:28]} 63. Rc1 {[%clk 0:00:16]}  Kg3 {[%clk 0:01:27]} 64. Kd6 {[%clk 0:00:16]}  Kh2 {[%clk 0:01:27]} 65. Rc2 {[%clk 0:00:15]}  Kh1 {[%clk 0:01:27]} 66. Rc4 {[%clk 0:00:14]}  g1=Q {[%clk 0:01:23]} 67. Rh4+ {[%clk 0:00:14]}  Kg2 {[%clk 0:01:23]} 68. Rg4+ {[%clk 0:00:14]}  Kf2 {[%clk 0:01:23]} 69. Rxg1 {[%clk 0:00:10]}  Kxg1 {[%clk 0:01:24]} 1/2-1/2


[Site "https://www.chess.com"]